Cogmind - Beta 13 @@@ ROGUE MODE // 2024.07.08 @ 02:07:55 Player: ThatBishHoly Result: Destroyed by S-10 Pest with Light Assault Rifle Performance ------------- Evolutions (2) 1000 Regions Visited (4) 800 Robots Destroyed (41) 205 Value Destroyed (949) 949 Prototype IDs (2) 40 Alien Tech Used (0) 0 Bonus (15) 15 TOTAL SCORE: 3009 Bonus ------- Follower Combat Kills 33 Friendly Fire -18 Cogmind --------- Core Integrity 0/550 Matter 290/300 Energy 65/100 System Corruption 0% Temperature Cool (0) Movement Flying (125) Ox1 Location -8/Materials Parts ------- > --- POWER (1) -------- (None) > --- PROPULSION (3) --- Aluminum Leg Cesium-ion Thruster > --- UTILITY (5) ------ Large Storage Unit Advanced Weight Redist. System Recoil Stabilizer > --- WEAPON (2) ------- Scythe > --- INVENTORY (15) --- Cesium-ion Thruster Cesium-ion Thruster Cesium-ion Thruster Compact Battery (200) Trap Scanner Improved Terrain Scan Processor Improved Weapon Shielding EM Pulse Cannon Improved Datajack Improved Datajack Mining Laser Peak State ------------ > --- POWER ------------ Fission Core > --- PROPULSION ------- Aluminum Leg Flexi-carbon Leg > --- UTILITY ---------- Large Storage Unit Advanced Weight Redist. System Structural Scanner Transport Network Coupler Splice Drone Bay > --- WEAPON ----------- Bore Cannon Katana > --- INVENTORY -------- Light Nuclear Core Advanced Treads Compact Battery Advanced Weight Redist. System Improved Terrain Scan Processor Recoil Stabilizer Arc Projector High-powered Shotgun Mining Laser Spear [Rating: 35] Favorites ----------- Power Light Nuclear Core Engine Ion Engine Power Core Light Nuclear Core Propulsion Advanced Treads Treads Advanced Treads Leg Aluminum Leg Flight Unit Cesium-ion Thruster Utility Large Storage Unit Device Structural Scanner Storage Large Storage Unit Processor Transport Network Coupler Protection Hardened Heavy Armor Plating Weapon High-powered Shotgun Energy Gun Arc Projector Ballistic Gun High-powered Shotgun Ballistic Cannon Bore Cannon Slashing Weapon Katana Piercing Weapon Spear Build | -11 -10 -9 -9 -8 ------- Run | Yrd Mat Mat Min Mat Slots Evolved 4 | . . 2 . 2 Power . | . . . . . Propulsion 1 | . . 1 . . Utility 3 | . . 1 . 2 Weapon . | . . . . . Parts Attached 68 | 6 3 20 10 29 Power 7 | 1 . 1 2 3 Engine 2 | 1 . . 1 . Core 5 | . . 1 1 3 Reactor . | . . . . . Propulsion 27 | 2 1 10 3 11 Treads 14 | 2 1 10 1 . Leg 12 | . . . 2 10 Wheel . | . . . . . Hover . | . . . . . Flight 1 | . . . . 1 Utility 17 | 1 2 3 3 8 Device 9 | . 1 . 2 6 Storage 4 | 1 1 2 . . Processor 2 | . . 1 . 1 Hackware . | . . . . . Protection 2 | . . . 1 1 Artifact . | . . . . . Weapon 17 | 2 . 6 2 7 Energy Gun 2 | . . . 1 1 Energy Cannon . | . . . . . Ballistic Gun 8 | 2 . 5 . 1 Ballistic Cannon 2 | . . . 1 1 Launcher . | . . . . . Special Weapon . | . . . . . Impact Weapon . | . . . . . Slashing Weapon 4 | . . 1 . 3 Piercing Weapon 1 | . . . . 1 Special Melee Weapon . | . . . . . Unidentified Prototypes 2 | . . . 2 . Parts Lost 33 | . . 1 7 25 Power 5 | . . 1 1 3 Propulsion 12 | . . . 4 8 Utility 8 | . . . 1 7 Weapon 8 | . . . 1 7 Highest Loss Streak 14 | . . 1 6 14 To Critical Strikes . | . . . . . Average Slot Usage (%) 89 | . 98 93 83 85 Engine 4 | . 14 5 5 . Core 5 | . . 4 3 8 Treads 16 | . 28 28 21 . Leg 9 | . . . 7 21 Device 16 | . 12 11 6 26 Storage 10 | . 14 11 11 9 Processor 4 | . . 11 1 3 Ballistic Gun 10 | . 28 16 6 . Ballistic Cannon 3 | . . . 3 6 Slashing Weapon 6 | . . 5 11 8 Naked Turns . | . . . . . Heaviest Build 53 | 13 29 32 53 50 Greatest Support 66 | 40 40 66 66 39 Greatest Overweight (x) 9 | . . 1 1 9 Average Overweight (x) . | . . . . . Largest Inventory Capacity 25 | 8 15 25 15 15 Average Capacity 13 | 7 8 15 15 15 Most Carried 15 | 5 5 15 15 12 Average Carried 8 | 1 1 11 12 8 Final Capacity 15 | 8 15 15 15 15 Final Carried 15 | . 5 15 12 11 Class Distribution -------------------- 63% | Mutant 36% | Scavenger-Mutant Dominant Class ---------------- Mutant | -10/Materials Mutant | -9/Materials Mutant | -9/Mines Scavenger-Mutant | -8/Materials Resources | -11 -10 -9 -9 -8 ----------- Run | Yrd Mat Mat Min Mat Matter Collected 1166 | 224 110 391 115 326 Remotely . | . . . . . Salvage Created 1524 | . 142 535 185 662 Parts 94 | . 9 29 14 42 Haulers Intercepted 6 | . 1 2 . 3 Recyclers Shooed 4 | . 1 2 . 1 Parts Field Recycled . | . . . . . Retrieved Matter . | . . . . . Parts Self-Destructed . | . . . . . Prevented . | . . . . . Kills | -11 -10 -9 -9 -8 ------- Run | Yrd Mat Mat Min Mat Combat Hostiles Destroyed 26 | . 2 8 7 9 Melee 10 | . . . 3 7 Guns 14 | . 2 8 3 1 Cannons 2 | . . . 1 1 Classes Destroyed 11 | . 3 5 2 1 Worker 6 | . 1 1 1 3 Builder 2 | . . . 1 1 Hauler 6 | . 1 2 . 3 Recycler 2 | . . 2 . . Operator 1 | . . . . 1 Watcher 2 | . . 2 . . Swarmer 3 | . . 3 . . Grunt 13 | . 2 1 3 7 Duelist 1 | . . 1 . . Sentry 5 | . . 3 . 2 Assembled 4 | . . . 4 . Best Kill Streak 4 | . 2 3 4 3 Combat Bots Only 3 | . 2 3 3 2 Max Kills in Single Turn 2 | . 1 2 1 1 Gunslinging 1 | . . 1 . . Exploded . | . . . . . Melee 1 | . . . 1 1 Uniques/NPCs Destroyed . | . . . . . Combat | -11 -10 -9 -9 -8 -------- Run | Yrd Mat Mat Min Mat Hostile Shots Fired 457 | . 33 64 98 262 Missed 114 | . 14 21 19 60 Damage Taken 5213 | . 275 669 1709 2560 Core 832 | . 52 84 146 550 Absorbed by Shields . | . . . . . Core Remaining (%) 73 | 100 79 . 42 . Volleys Fired 74 | . 13 30 13 18 Largest 2 | . 2 2 1 1 Hottest 57 | . 40 50 57 57 Shots Fired 106 | . 26 49 13 18 Gun 91 | . 26 49 11 5 Cannon 15 | . . . 2 13 Launcher . | . . . . . Special . | . . . . . Kinetic 102 | . 26 49 11 16 Thermal . | . . . . . Explosive . | . . . . . Electromagnetic 4 | . . . 2 2 Robot Hit Streak 7 | . 7 5 4 6 Robot Miss Streak 4 | . 3 4 3 3 Penetration Max . | . . . . . Secondary Targets 3 | . 1 2 . . Max Gunslinging Chain 1 | . 1 1 . . Shots Hit Robots 119 | . 15 39 16 49 Core Hits 58 | . 8 21 11 18 Critical Kills 3 | . . 1 1 1 Critical Parts Destroyed 3 | . . . 1 2 Critical Strikes 11 | . . 1 2 8 Destroy 6 | . . 1 2 3 Sever 5 | . . . . 5 Melee Attacks 59 | . . 5 7 47 Impact . | . . . . . Slashing 58 | . . 5 7 46 Piercing 1 | . . . . 1 Sneak Attacks 18 | . . 3 2 13 Combat Hostiles . | . . . . . Follow-up Attacks . | . . . . . Damage Inflicted 3378 | . 186 836 536 1820 Guns 1093 | . 182 632 186 93 Cannons 184 | . . . 57 127 Explosions . | . . . . . Melee 2089 | . . 198 293 1598 Ramming 12 | . 4 6 . 2 Kinetic 1231 | . 182 632 220 197 Thermal . | . . . . . Explosive . | . . . . . Electromagnetic 46 | . . . 23 23 Impact . | . . . . . Slashing 2089 | . . 198 293 1598 Piercing . | . . . . . Highest Corruption . | . . . . . Average Corruption . | . . . . . Corruption Purged . | . . . . . Corruption Blocked . | . . . . . Overload Shots . | . . . . . Overflow Damage 242 | . . 60 31 151 Projectiles . | . . . . . Explosions . | . . . . . Melee 242 | . . 60 31 151 Knockbacks 2 | . 1 . 1 . Impact 1 | . 1 . . . Kinetic 1 | . . . 1 . Secondary . | . . . . . Self-Inflicted Damage . | . . . . . Shots . | . . . . . Rammed 2 | . 2 . . . Targets Rammed 5 | . 3 1 . 1 Kicked 1 | . . . . 1 Crushed 2 | . 1 1 . . Highest Temperature 28 | . 15 2 15 28 Average Temperature 8 | . 6 2 9 9 Received Heat Transfer 1397 | . 150 195 80 972 Siege Activations . | . . . . . Robots Corrupted . | . . . . . Combat Hostiles . | . . . . . Parts Fried . | . . . . . Impact Corruptions . | . . . . . Robots Melted . | . . . . . Combat Hostiles . | . . . . . Parts Melted . | . . . . . Heat Transferred . | . . . . . Parts Sabotaged . | . . . . . Parts Stolen . | . . . . . Parts Stripped . | . . . . . Power Chain Reactions . | . . . . . Alert | -11 -10 -9 -9 -8 ------- Run | Yrd Mat Mat Min Mat Peak Influence 277 | . 77 277 126 161 Initial 51 | . . . 51 1 Average 59 | . 29 98 52 49 Maximum Alert Level 1 | . . 1 . . Low Security (%) 96 | 100 100 86 100 100 Level 1 3 | . . 13 . . Level 2 . | . . . . . Level 3 . | . . . . . Level 4 . | . . . . . Level 5 . | . . . . . High Security . | . . . . . Max Security . | . . . . . Squads Dispatched 5 | . . . . 5 Investigation 2 | . . . . 2 Extermination . | . . . . . Reinforcement 2 | . . . . 2 Assault . | . . . . . Garrison 1 | . . . . 1 Intercept . | . . . . . Searches Triggered . | . . . . . Construction Impeded 1 | . . . . 1 Haulers Reinforced . | . . . . . Active Scanning Responses . | . . . . . Cargo Convoy Interrupts . | . . . . . Stealth | -11 -10 -9 -9 -8 --------- Run | Yrd Mat Mat Min Mat Distress Signals 2 | . . . . 2 Communications Jammed . | . . . . . Distress Signals . | . . . . . Times Spotted 82 | . 5 20 26 31 Peak Tracking Total 10 | . 2 6 10 9 Tactical Retreats 4 | . . . 3 1 Traps | -11 -10 -9 -9 -8 ------- Run | Yrd Mat Mat Min Mat Traps Triggered 4 | . . 2 2 . Indirectly . | . . . . . Trap Hack Attempts . | . . . . . Triggered . | . . . . . Disarmed . | . . . . . Reprogrammed . | . . . . . Reused . | . . . . . Traps Extracted . | . . . . . Installed . | . . . . . Triggered . | . . . . . Machines | -11 -10 -9 -9 -8 ---------- Run | Yrd Mat Mat Min Mat Machines Disabled . | . . . . . Max in Single Turn . | . . . . . Machines Repaired . | . . . . . Machines Dismantled . | . . . . . Machines Sabotaged . | . . . . . Overloaded Fab Kills . | . . . . . Hacking | -11 -10 -9 -9 -8 --------- Run | Yrd Mat Mat Min Mat Machines Accessed 6 | . 2 1 1 2 Terminals 3 | . 1 1 . 1 Fabricators . | . . . . . Repair Stations . | . . . . . Recycling Units 1 | . 1 . . . Scanalyzers . | . . . . . Garrison Access 1 | . . . . 1 Total Hacks 10 | . 2 1 1 6 Successful 3 | . 1 . 1 1 Failed 7 | . 1 1 . 5 Catastrophic . | . . . . . Database Lockouts . | . . . . . Manual . | . . . . . Terminals 4 | . 1 1 . 2 Fabricators . | . . . . . Repair Stations . | . . . . . Recycling Units 1 | . 1 . . . Scanalyzers . | . . . . . Garrison Access 4 | . . . . 4 Terminal Hacks 1 | . . . 1 . Open Door 1 | . . . 1 . Fabricator Hacks . | . . . . . Repair Station Hacks . | . . . . . Recycling Unit Hacks 1 | . 1 . . . Report Inventory 1 | . 1 . . . Scanalyzer . | . . . . . Garrison Access Hacks 1 | . . . . 1 Coupler Status 1 | . . . . 1 Unauthorized Hacks . | . . . . . Terminals . | . . . . . Fabricators . | . . . . . Repair Stations . | . . . . . Recycling Units . | . . . . . Scanalyzers . | . . . . . Garrison Access . | . . . . . Data Cores Recovered . | . . . . . Used . | . . . . . Hacking Detections 2 | . . . . 2 Full Trace Events 1 | . . . . 1 Feedback Events . | . . . . . Feedback Blocked . | . . . . . Robot Schematics Acquired . | . . . . . Robots Built . | . . . . . Authchips . | . . . . . Time . | . . . . . Total Robot Build Rating . | . . . . . Part Schematics Acquired . | . . . . . Parts Built . | . . . . . Authchips . | . . . . . Time . | . . . . . Total Part Build Rating . | . . . . . Parts Repaired . | . . . . . Time . | . . . . . Parts Recycled . | . . . . . Recycled Matter . | . . . . . Retrieved Matter . | . . . . . Retrieved Components . | . . . . . Parts Scanalyzed . | . . . . . Part Schematics Acquired . | . . . . . Parts Damaged . | . . . . . Bothacking | -11 -10 -9 -9 -8 ------------ Run | Yrd Mat Mat Min Mat Used RIF Installer . | . . . . . Robots Hacked . | . . . . . Non-combat . | . . . . . Combat . | . . . . . Robot Hacks Applied . | . . . . . Relay Couplers Released . | . . . . . Fabnet Peak Effective % . | . . . . . Robots Rewired . | . . . . . Allies Hacked . | . . . . . Hacks Repelled . | . . . . . Allies | -11 -10 -9 -9 -8 -------- Run | Yrd Mat Mat Min Mat Total Allies 5 | . . . 4 1 Largest Group 3 | . . . 3 1 Highest-Rated Group 40 | . . . 40 31 Highest-Rated Ally 31 | . . . 31 31 Total Orders . | . . . . . Ally Attacks 58 | . . . 33 25 Total Damage 471 | . . . 215 256 Kills 5 | . . . 3 2 Allies Corrupted . | . . . . . Allies Melted . | . . . . . Intel | -11 -10 -9 -9 -8 ------- Run | Yrd Mat Mat Min Mat Robot Analysis Total . | . . . . . Derelict Logs Recovered . | . . . . . Drone Launches 26 | . . . 20 6 Drone Recoveries 26 | . . . 20 6 Exploration | -11 -10 -9 -9 -8 ------------- Run | Yrd Mat Mat Min Mat Turns Passed 2705 | 56 404 771 516 958 Spaces Moved 1382 | 45 221 369 275 472 Core 32 | 24 . . . 8 Treads 784 | 21 221 369 173 . Legs 566 | . . . 102 464 Wheels . | . . . . . Hover . | . . . . . Flight . | . . . . . Fastest Speed 50 | 50 160 145 145 120 Average Speed 159 | 101 160 168 161 154 Slowest Speed 500 | 160 160 225 190 500 Overloaded Moves . | . . . . . Propulsion Burnouts . | . . . . . Robots Hopped . | . . . . . Cave-ins Triggered . | . . . . . Exploration Rate (%) 31 | 4 31 33 53 36 Regions Visited 4 Branch Regions 1 Pre-discovered Areas . | . . . . . Known Exits Taken . | . . . . . Unknown Exits Taken 4 | 1 1 1 1 . Scrap Searched 1 | . . . 1 . Spaces Dug . | . . . . . Terrain Destroyed 4 | . . . . 4 Melee . | . . . . . Projectile 4 | . . . . 4 AOE . | . . . . . Terrain Rammed . | . . . . . Walls Destroyed . | . . . . . Machines Disabled . | . . . . . Actions | -11 -10 -9 -9 -8 --------- Run | Yrd Mat Mat Min Mat Total 1694 | 55 245 457 326 611 Wait 5 | . . . . 5 Move 1378 | 44 220 368 274 472 Hop . | . . . . . Pick Up 77 | 5 6 23 12 31 Fast Attach 3 | 1 . 2 . . Attach 42 | 5 1 4 7 25 Detach . | . . . . . Swap 23 | . 2 14 3 4 Drop 28 | . . 10 10 8 Fire 74 | . 13 30 13 18 Melee 59 | . . 5 7 47 Ram . | . . . . . Kick 1 | . . . . 1 Crush 4 | . 3 1 . . Escape Stasis . | . . . . . Rewire . | . . . . . Trap . | . . . . . Miscellaneous . | . . . . . Route ------- -11/Scrapyard -10/Materials -9/Materials -9/Mines (discovered 2 exits: *Mat x2) -8/Materials History --------- Turn | Location | Event 11 | -11/Scrapyard | Discovered new exit (range 16) 57 | -11/Scrapyard | Entered Materials 317 | -10/Materials | Build established: Mutant 396 | -10/Materials | Discovered new exit (range 12) 461 | -10/Materials | Entered another Materials area 461 | -9/Materials | Evolved 2 slots: Propulsion x1, Utility x1 1175 | -9/Materials | Discovered new exit (range 7) 1232 | -9/Materials | Entered Mines 1251 | -9/Mines | Met a Derelict who couldn't figure out how to use a Trap Extractor 1359 | -9/Mines | Discovered new exit (range 8) 1435 | -9/Mines | Assisted by bots powering up and referring to "LRC-V3" 1472 | -9/Mines | Assembled infested the area 1477 | -9/Mines | Assisted by a Guerilla fighting off Assembled 1528 | -9/Mines | Found the Drone Emporium 1535 | -9/Mines | Found Prototype Device 1542 | -9/Mines | Core integrity fell below 50% 1542 | -9/Mines | Identified Splice Drone Bay 1570 | -9/Mines | Lost 5 allies 1571 | -9/Mines | Lost 6 parts (1p3n1u1w) 1728 | -9/Mines | Discovered new exit (range 8) 1731 | -9/Mines | Received a Mining Laser from a helpful Derelict 1748 | -9/Mines | Entered Materials 1748 | -8/Materials | Accompanied by 1 ally 1748 | -8/Materials | Evolved 2 slots: Utility x2 1886 | -8/Materials | Build established: Scavenger-Mutant 2001 | -8/Materials | Garrison activated, responded to threat 2138 | -8/Materials | Core integrity fell below 50% 2182 | -8/Materials | Lost 14 parts (1p4n3u6w) 2219 | -8/Materials | Core integrity fell below 20% 2229 | -8/Materials | Lost 4 parts (1p2n1u) 2706 | -8/Materials | Destroyed by S-10 Pest with Light Assault Rifle Last Messages --------------- 02560_ Dropped Datajack. 02565_ Acquired Recoil Stabilizer. 02568_ Acquired Imp. Datajack. 02573_ Dropped Lgt. Nuclear Core. 02573_ Dropped Adv. Treads. 02600_ Acquired Imp. Weapon Shielding. 02609_ Sneak attack on A-02 Transporter. 02609_ A-02 Transporter destroyed. 02613_ Acquired Cesium-ion Thruster. 02616_ W-25 Informer sends out distress signal. 02619_ Acquired 10 matter. 02621_ Acquired Cesium-ion Thruster. 02651_ Sneak attack on R-06 Scavenger. 02673_ Structural Scanner destroyed. 02687_ S-10 Pest Lgt. Assault Rifle severed. 02689_ Flak Cannon destroyed. 02690_ Aluminum Leg destroyed. 02696_ Recoil Stabilizer destroyed. 02698_ Aluminum Leg destroyed. 02701_ Lgt. Nuclear Core destroyed. Map ----- +----------------------------------------------------+ | ????????????????????????????????????????????????? | | ????????????????????????????????????????????????? | | ????????????????????????????????????????????????? | | ????????????????????????????????????????????????? | | ????????????????????????????????????????????????? | | ????????????????????????????????????????????????? | | ????????????????????????????????????????????????? | | ????????????????????????????????????????????????? | | ????????????????????????????????????????????????? | | ????????????????????????????????????????????????? | | ????????????????????????????????????????????????? | | ????????????????????????????????????????????????? | | ????????????????????????????????????????????????? | | ????????????????????????????????????????????????? | | ????????????????????????????????????????????????? | | ????????????????????????????????????????????????? | | ????????????????????????????????????????????????? | | ????????????????????????????????????????????????? | | ????????????????????????? ############# ????????? | | ????????????????????????? ############# ???????? | | ????????????????????????? + ??????? | | ??????????????????????? # ##????? | | ????????????# ######### "T" !!!##????? | | ????????????# [ !!!##????? | | ????????????# ###+##Y## !!!##????? | | ???????????????????# g @s# / ????? | | ???????????????????# [s[ # ##????? | | ???????????????????# [[s # ###+###????? | | ???????????????????# [[ !# ###### ### ?????? | | ???????????????????# # ###### ### ?????????? | | ???????????????????# ! # ###### ##???????????? | | ???????????????????########/###### ##???????????? | | ?????????????????????????## # ### """""???? | | ?????????????????????????## # ##########???? | | ?????????????????????????## / + """ #???? | | ?????????????????????????## # ### "T" ?????? | | ?????????????????????????## # ### ??????? | | ?????????????????????????## # ### ??????? | | ?????????????????????????######### ### !???????? | | ?????????????????????????######### ### ## ?? | | ???????????????????????????????## ###+##+### | | ???????????????????????????????## | | ???????????????????????????????## ### ##+###### | | ???????????????????????????????###=#### # ## | | ???????????????????????????????### #### # ??????? | | ????????????????????????????????## #### # ??????? | | ????????????????????????????######%#### # ??????? | | ????????????????????????????######+#### # ??????? | | ????????????????????????????## = ! # # ????# | | ????????????????????????????##[= =!* # ####????# | +----------------------------------------------------+ Best States ------------- Heat Dissipation 31 Energy Generation 18 Energy Capacity 310 Matter Stores 300 Matter Capacity 300 Sight Range 16 Terrain Scan Density 10 Additional Mass Support 9 Armor Coverage 600 Evasion (%) 55 Recoil Reduction 8 Trap Extractor Capacity 6 Item Schematics ----------------- None Robot Schematics ------------------ None Fabricated ------------ Nothing Alien Tech Used ----------------- None Achievements -------------- None Challenges ------------ None Game ------ Seed HugeFlyingDetonator Manual? 0 Play Time 00:31:20 Cumulative 28.9 hours Start 2024.07.08 @ 01:39:50 End 2024.07.08 @ 02:07:55 Sessions 1 Manual Loads 0 Difficulty Rogue Special Mode None Game No. 91 Rogue 91 Adventurer 0 Explorer 0 Win Type - Total 0 Types 0/0/0/0/0/0/0/0/0 Lore% 17 Gallery% 32 Achievement% 23 Wizard Run 0 Options --------- Layout 1 ASCII 0 Keyboard 0 Movement Arrows Keybinds 0 Fullscreen 1 Font 16/SmallcapsGlow Map View 25x20 Zoom Use 100% Tactical HUD 1 Map Filters NONE Filters NONE Steam SD RUN: 42db8067-425e-4865-ae39-3ea31a880069